[Event "Titled Tuesday Blitz July 11 Late 2023"]
[White "Kadric, Denis"]
[Black "Ismagilov, Damir"]
[WhiteFideId "14403803"]
[BlackFideId "34199982"]
[WhiteElo "2789"]
[BlackElo "2541"]
[Result "1/2-1/2"]
[Round "5"]
[TimeControl "180+2"]
[Date "2023.07.11"]
[WhiteClock "0:00:15"]
[BlackClock "0:00:30"]
[Board "40"]

1. e4 {[%clk 0:02:58]}  c5 {[%clk 0:02:57]} 2. Nc3 {[%clk 0:02:58]}  g6 {[%clk 0:02:55]} 3. Nge2 {[%clk 0:02:58]}  Bg7 {[%clk 0:02:55]} 4. d4 {[%clk 0:02:59]}  cxd4 {[%clk 0:02:54]} 5. Nxd4 {[%clk 0:03:00]}  Nc6 {[%clk 0:02:53]} 6. Be3 {[%clk 0:03:00]}  Nf6 {[%clk 0:02:49]} 7. Bc4 {[%clk 0:02:59]}  O-O {[%clk 0:02:47]} 8. Bb3 {[%clk 0:02:59]}  d6 {[%clk 0:02:37]} 9. f3 {[%clk 0:02:59]}  Na5 {[%clk 0:02:31]} 10. Qd2 {[%clk 0:02:50]}  Nxb3 {[%clk 0:02:29]} 11. axb3 {[%clk 0:02:50]}  Bd7 {[%clk 0:02:27]} 12. g4 {[%clk 0:02:47]}  a6 {[%clk 0:02:19]} 13. h4 {[%clk 0:02:46]}  e5 {[%clk 0:02:18]} 14. Nde2 {[%clk 0:02:45]}  Qc7 {[%clk 0:02:09]} 15. h5 {[%clk 0:02:38]}  Be6 {[%clk 0:02:01]} 16. Bh6 {[%clk 0:02:04]}  Rfd8 {[%clk 0:01:42]} 17. Bxg7 {[%clk 0:02:01]}  Kxg7 {[%clk 0:01:43]} 18. hxg6 {[%clk 0:02:01]}  fxg6 {[%clk 0:01:42]} 19. Qh6+ {[%clk 0:02:02]}  Kg8 {[%clk 0:01:41]} 20. g5 {[%clk 0:02:02]}  Nh5 {[%clk 0:01:40]} 21. Rxh5 {[%clk 0:02:02]}  gxh5 {[%clk 0:01:37]} 22. Qxe6+ {[%clk 0:02:02]}  Qf7 {[%clk 0:01:34]} 23. Qxf7+ {[%clk 0:01:57]}  Kxf7 {[%clk 0:01:34]} 24. Kd2 {[%clk 0:01:56]}  Rg8 {[%clk 0:01:31]} 25. Rg1 {[%clk 0:01:55]}  h6 {[%clk 0:01:17]} 26. g6+ {[%clk 0:01:46]}  Rxg6 {[%clk 0:01:17]} 27. Rh1 {[%clk 0:01:46]}  Rg5 {[%clk 0:01:14]} 28. Nd5 {[%clk 0:01:47]}  Rag8 {[%clk 0:01:12]} 29. Ne3 {[%clk 0:01:46]}  R8g6 {[%clk 0:01:08]} 30. c4 {[%clk 0:01:44]}  Rf6 {[%clk 0:01:06]} 31. Nf5 {[%clk 0:01:40]}  Ke6 {[%clk 0:01:03]} 32. Ke3 {[%clk 0:01:35]}  Rf8 {[%clk 0:00:54]} 33. Neg3 {[%clk 0:01:27]}  b5 {[%clk 0:00:53]} 34. Nxh5 {[%clk 0:01:14]}  bxc4 {[%clk 0:00:53]} 35. bxc4 {[%clk 0:01:14]}  Rb8 {[%clk 0:00:52]} 36. Nhg7+ {[%clk 0:01:14]}  Kf7 {[%clk 0:00:49]} 37. Rb1 {[%clk 0:00:15]}  Rb3+ {[%clk 0:00:47]} 38. Kd2 {[%clk 0:00:14]}  Rxg7 {[%clk 0:00:48]} 39. Nxg7 {[%clk 0:00:14]}  Kxg7 {[%clk 0:00:49]} 40. Ke2 {[%clk 0:00:13]}  Kf6 {[%clk 0:00:48]} 41. Rh1 {[%clk 0:00:13]}  Rxb2+ {[%clk 0:00:48]} 42. Kd3 {[%clk 0:00:14]}  Rb3+ {[%clk 0:00:48]} 43. Ke2 {[%clk 0:00:15]}  a5 {[%clk 0:00:40]} 44. Rxh6+ {[%clk 0:00:14]}  Ke7 {[%clk 0:00:40]} 45. Rh7+ {[%clk 0:00:15]}  Ke6 {[%clk 0:00:40]} 46. Ra7 {[%clk 0:00:15]}  Rc3 {[%clk 0:00:39]} 47. Rxa5 {[%clk 0:00:14]}  Rxc4 {[%clk 0:00:39]} 48. Kf2 {[%clk 0:00:15]}  Rc1 {[%clk 0:00:31]} 49. Ra8 {[%clk 0:00:14]}  Rd1 {[%clk 0:00:30]} 50. Ke2 {[%clk 0:00:14]}  Rc1 {[%clk 0:00:30]} 51. Rh8 {[%clk 0:00:14]}  Kf6 {[%clk 0:00:29]} 52. Rh6+ {[%clk 0:00:14]}  Ke7 {[%clk 0:00:30]} 53. Kf2 {[%clk 0:00:14]}  Rd1 {[%clk 0:00:29]} 54. Ke2 {[%clk 0:00:15]}  Rc1 {[%clk 0:00:30]} 55. Ke3 {[%clk 0:00:15]}  Re1+ {[%clk 0:00:29]} 56. Kd2 {[%clk 0:00:15]}  Rf1 {[%clk 0:00:30]} 57. Ke2 {[%clk 0:00:15]}  Rc1 {[%clk 0:00:30]} 1/2-1/2


[Site "https://www.chess.com"]

[Event "Titled Tuesday Blitz July 11 Late 2023"]
[White "Chor, Kevin"]
[Black "Priasmoro, Novendra"]
[WhiteFideId "2090740"]
[BlackFideId "7105029"]
[WhiteElo "2529"]
[BlackElo "2762"]
[Result "0-1"]
[Round "5"]
[TimeControl "180+2"]
[Date "2023.07.11"]
[WhiteClock "0:00:00"]
[BlackClock "0:00:35"]
[Board "42"]

1. e4 {[%clk 0:03:00]}  c5 {[%clk 0:02:41]} 2. Nf3 {[%clk 0:02:49]}  Nc6 {[%clk 0:02:41]} 3. d4 {[%clk 0:02:49]}  cxd4 {[%clk 0:02:42]} 4. Nxd4 {[%clk 0:02:50]}  Nf6 {[%clk 0:02:42]} 5. Nc3 {[%clk 0:02:50]}  e6 {[%clk 0:02:42]} 6. Ndb5 {[%clk 0:02:49]}  Bc5 {[%clk 0:02:42]} 7. Nd6+ {[%clk 0:02:37]}  Ke7 {[%clk 0:02:42]} 8. Nxc8+ {[%clk 0:02:36]}  Rxc8 {[%clk 0:02:40]} 9. Bd3 {[%clk 0:02:35]}  d5 {[%clk 0:02:38]} 10. exd5 {[%clk 0:02:30]}  Nxd5 {[%clk 0:02:39]} 11. Bg5+ {[%clk 0:02:25]}  f6 {[%clk 0:02:39]} 12. Bd2 {[%clk 0:02:26]}  Kf7 {[%clk 0:02:31]} 13. O-O {[%clk 0:02:22]}  Ne5 {[%clk 0:02:30]} 14. Be4 {[%clk 0:02:15]}  Ne7 {[%clk 0:02:06]} 15. Bxb7 {[%clk 0:01:52]}  Rb8 {[%clk 0:02:04]} 16. Be4 {[%clk 0:01:50]}  Nc4 {[%clk 0:01:55]} 17. Qh5+ {[%clk 0:01:31]}  g6 {[%clk 0:01:55]} 18. Qxc5 {[%clk 0:01:31]}  Rc8 {[%clk 0:01:52]} 19. Qxa7 {[%clk 0:01:24]}  Rc7 {[%clk 0:01:47]} 20. Qa6 {[%clk 0:01:16]}  Qxd2 {[%clk 0:01:45]} 21. Rad1 {[%clk 0:01:05]}  Qf4 {[%clk 0:01:45]} 22. Nb5 {[%clk 0:00:48]}  Rc5 {[%clk 0:01:39]} 23. Rfe1 {[%clk 0:00:42]}  Re5 {[%clk 0:01:23]} 24. Nc3 {[%clk 0:00:28]}  Nxb2 {[%clk 0:01:16]} 25. Rb1 {[%clk 0:00:28]}  Rb8 {[%clk 0:01:13]} 26. g3 {[%clk 0:00:24]}  Qd2 {[%clk 0:01:13]} 27. Re3 {[%clk 0:00:12]}  Rc5 {[%clk 0:01:09]} 28. Na4 {[%clk 0:00:11]}  Ra5 {[%clk 0:00:58]} 29. Qf1 {[%clk 0:00:08]}  Rxa4 {[%clk 0:00:57]} 30. Bg2 {[%clk 0:00:07]}  Qxc2 {[%clk 0:00:54]} 31. Rbe1 {[%clk 0:00:06]}  e5 {[%clk 0:00:54]} 32. Bh3 {[%clk 0:00:06]}  Nc4 {[%clk 0:00:52]} 33. R3e2 {[%clk 0:00:05]}  Qc3 {[%clk 0:00:48]} 34. Rc1 {[%clk 0:00:05]}  Qd3 {[%clk 0:00:49]} 35. Qe1 {[%clk 0:00:04]}  Rb2 {[%clk 0:00:45]} 36. Rxb2 {[%clk 0:00:04]}  Nxb2 {[%clk 0:00:46]} 37. Bf1 {[%clk 0:00:04]}  Qd4 {[%clk 0:00:46]} 38. Qe2 {[%clk 0:00:04]}  e4 {[%clk 0:00:43]} 39. Rc2 {[%clk 0:00:03]}  Nd3 {[%clk 0:00:43]} 40. Qg4 {[%clk 0:00:03]}  h5 {[%clk 0:00:38]} 41. Qh4 {[%clk 0:00:02]}  Nf5 {[%clk 0:00:34]} 42. Qh3 {[%clk 0:00:01]}  Nxf2 {[%clk 0:00:34]} 43. Rxf2 {[%clk 0:00:00]}  Rxa2 {[%clk 0:00:35]} 0-1


[Site "https://www.chess.com"]

[Event "Titled Tuesday Blitz July 11 Late 2023"]
[White "Koc, Przemyslaw"]
[Black "Jarovinsky, Alexey"]
[WhiteFideId "1109081"]
[BlackFideId "14115131"]
[WhiteElo "2521"]
[BlackElo "2724"]
[Result "1/2-1/2"]
[Round "5"]
[TimeControl "180+2"]
[Date "2023.07.11"]
[WhiteClock "0:00:05"]
[BlackClock "0:00:06"]
[Board "44"]

1. Nf3 {[%clk 0:03:00]}  Nc6 {[%clk 0:02:53]} 2. d4 {[%clk 0:03:00]}  d6 {[%clk 0:02:25]} 3. d5 {[%clk 0:02:54]}  Ne5 {[%clk 0:02:25]} 4. Nxe5 {[%clk 0:02:50]}  dxe5 {[%clk 0:02:26]} 5. e4 {[%clk 0:02:44]}  Nf6 {[%clk 0:02:26]} 6. Nc3 {[%clk 0:02:37]}  e6 {[%clk 0:02:26]} 7. Bb5+ {[%clk 0:02:35]}  Bd7 {[%clk 0:02:26]} 8. dxe6 {[%clk 0:02:32]}  Bxb5 {[%clk 0:02:25]} 9. exf7+ {[%clk 0:02:25]}  Kxf7 {[%clk 0:02:26]} 10. Qxd8 {[%clk 0:02:22]}  Rxd8 {[%clk 0:02:27]} 11. Nxb5 {[%clk 0:02:22]}  Nxe4 {[%clk 0:02:26]} 12. f3 {[%clk 0:01:52]}  a6 {[%clk 0:02:19]} 13. fxe4 {[%clk 0:01:43]}  axb5 {[%clk 0:02:19]} 14. O-O+ {[%clk 0:01:40]}  Ke6 {[%clk 0:02:18]} 15. Be3 {[%clk 0:01:41]}  Ra8 {[%clk 0:02:16]} 16. a3 {[%clk 0:01:37]}  Be7 {[%clk 0:02:00]} 17. c3 {[%clk 0:01:31]}  Ra4 {[%clk 0:01:49]} 18. b4 {[%clk 0:01:20]}  Rha8 {[%clk 0:01:48]} 19. Bc1 {[%clk 0:01:10]}  c5 {[%clk 0:01:48]} 20. Bb2 {[%clk 0:01:10]}  Rd8 {[%clk 0:01:20]} 21. Rad1 {[%clk 0:01:10]}  Raa8 {[%clk 0:01:19]} 22. Kf2 {[%clk 0:01:06]}  Rxd1 {[%clk 0:01:04]} 23. Rxd1 {[%clk 0:01:06]}  Rf8+ {[%clk 0:01:05]} 24. Ke3 {[%clk 0:00:36]}  Bg5+ {[%clk 0:01:03]} 25. Ke2 {[%clk 0:00:20]}  Rf4 {[%clk 0:01:03]} 26. g3 {[%clk 0:00:15]}  Rxe4+ {[%clk 0:01:02]} 27. Kf3 {[%clk 0:00:15]}  Rc4 {[%clk 0:00:54]} 28. h4 {[%clk 0:00:12]}  e4+ {[%clk 0:00:49]} 29. Ke2 {[%clk 0:00:12]}  Bf6 {[%clk 0:00:43]} 30. bxc5 {[%clk 0:00:12]}  Bxc3 {[%clk 0:00:37]} 31. Rd6+ {[%clk 0:00:10]}  Ke5 {[%clk 0:00:30]} 32. Bxc3+ {[%clk 0:00:10]}  Rxc3 {[%clk 0:00:30]} 33. Rb6 {[%clk 0:00:08]}  Rxg3 {[%clk 0:00:27]} 34. Rxb7 {[%clk 0:00:06]}  Kd4 {[%clk 0:00:23]} 35. c6 {[%clk 0:00:06]}  Rc3 {[%clk 0:00:19]} 36. Rxg7 {[%clk 0:00:06]}  Rxc6 {[%clk 0:00:15]} 37. Rxh7 {[%clk 0:00:06]}  Rc2+ {[%clk 0:00:15]} 38. Kd1 {[%clk 0:00:06]}  Rh2 {[%clk 0:00:11]} 39. Rb7 {[%clk 0:00:04]}  Kd3 {[%clk 0:00:10]} 40. Rd7+ {[%clk 0:00:03]}  Ke3 {[%clk 0:00:10]} 41. Rd5 {[%clk 0:00:03]}  Rb2 {[%clk 0:00:06]} 42. h5 {[%clk 0:00:03]}  Rh2 {[%clk 0:00:04]} 43. Rxb5 {[%clk 0:00:02]}  Kd3 {[%clk 0:00:04]} 44. Rd5+ {[%clk 0:00:02]}  Kc4 {[%clk 0:00:05]} 45. Rg5 {[%clk 0:00:02]}  Kd3 {[%clk 0:00:04]} 46. Rd5+ {[%clk 0:00:02]}  Kc4 {[%clk 0:00:04]} 47. Rg5 {[%clk 0:00:03]}  e3 {[%clk 0:00:03]} 48. Ke1 {[%clk 0:00:03]}  Kd3 {[%clk 0:00:03]} 49. Rd5+ {[%clk 0:00:03]}  Ke4 {[%clk 0:00:04]} 50. Rb5 {[%clk 0:00:03]}  Kf3 {[%clk 0:00:04]} 51. Rf5+ {[%clk 0:00:03]}  Ke4 {[%clk 0:00:04]} 52. Rb5 {[%clk 0:00:03]}  Ra2 {[%clk 0:00:04]} 53. h6 {[%clk 0:00:02]}  Rh2 {[%clk 0:00:04]} 54. Rb6 {[%clk 0:00:02]}  Kf3 {[%clk 0:00:04]} 55. Rf6+ {[%clk 0:00:02]}  Ke4 {[%clk 0:00:05]} 56. a4 {[%clk 0:00:02]}  Kd3 {[%clk 0:00:05]} 57. Rd6+ {[%clk 0:00:02]}  Ke4 {[%clk 0:00:05]} 58. a5 {[%clk 0:00:03]}  Rh1+ {[%clk 0:00:05]} 59. Ke2 {[%clk 0:00:03]}  Rh2+ {[%clk 0:00:05]} 60. Ke1 {[%clk 0:00:04]}  Rh1+ {[%clk 0:00:06]} 61. Ke2 {[%clk 0:00:04]}  Rh2+ {[%clk 0:00:06]} 62. Ke1 {[%clk 0:00:05]} 1/2-1/2


[Site "https://www.chess.com"]

[Event "Titled Tuesday Blitz July 11 Late 2023"]
[White "Bueno, Alfeu Junior Varela"]
[Black "Jaracz, Pawel"]
[WhiteFideId "2108879"]
[BlackFideId "1102222"]
[WhiteElo "2453"]
[BlackElo "2716"]
[Result "0-1"]
[Round "5"]
[TimeControl "180+2"]
[Date "2023.07.11"]
[WhiteClock "0:00:00"]
[BlackClock "0:00:10"]
[Board "47"]

1. e4 {[%clk 0:03:00]}  e5 {[%clk 0:02:55]} 2. Nc3 {[%clk 0:03:01]}  Nf6 {[%clk 0:02:51]} 3. f4 {[%clk 0:03:01]}  d5 {[%clk 0:02:51]} 4. fxe5 {[%clk 0:03:01]}  Nxe4 {[%clk 0:02:51]} 5. Qf3 {[%clk 0:03:02]}  Nxc3 {[%clk 0:02:49]} 6. dxc3 {[%clk 0:03:03]}  Nc6 {[%clk 0:02:48]} 7. Bf4 {[%clk 0:03:00]}  Be6 {[%clk 0:02:47]} 8. O-O-O {[%clk 0:02:59]}  Qd7 {[%clk 0:02:39]} 9. h3 {[%clk 0:02:53]}  O-O-O {[%clk 0:02:38]} 10. Bb5 {[%clk 0:02:53]}  a6 {[%clk 0:02:27]} 11. Ba4 {[%clk 0:02:51]}  b5 {[%clk 0:02:28]} 12. Bb3 {[%clk 0:02:49]}  Na5 {[%clk 0:02:27]} 13. Qf2 {[%clk 0:02:33]}  c5 {[%clk 0:02:27]} 14. a3 {[%clk 0:02:31]}  d4 {[%clk 0:02:05]} 15. Bxe6 {[%clk 0:01:54]}  Qxe6 {[%clk 0:02:05]} 16. Qf3 {[%clk 0:01:54]}  Kb8 {[%clk 0:01:44]} 17. Kb1 {[%clk 0:01:48]}  Be7 {[%clk 0:01:43]} 18. Ne2 {[%clk 0:01:45]}  Nc6 {[%clk 0:01:35]} 19. Qe4 {[%clk 0:01:31]}  f5 {[%clk 0:01:32]} 20. Qf3 {[%clk 0:01:26]}  Rhf8 {[%clk 0:01:18]} 21. h4 {[%clk 0:01:21]}  Ka7 {[%clk 0:01:16]} 22. cxd4 {[%clk 0:01:15]}  cxd4 {[%clk 0:01:11]} 23. Qf2 {[%clk 0:00:51]}  Bc5 {[%clk 0:01:11]} 24. c3 {[%clk 0:00:51]}  Qc4 {[%clk 0:00:48]} 25. cxd4 {[%clk 0:00:36]}  Nxd4 {[%clk 0:00:48]} 26. Nxd4 {[%clk 0:00:35]}  Rxd4 {[%clk 0:00:47]} 27. Rxd4 {[%clk 0:00:26]}  Bxd4 {[%clk 0:00:42]} 28. Qd2 {[%clk 0:00:23]}  Rd8 {[%clk 0:00:33]} 29. Be3 {[%clk 0:00:16]}  Kb7 {[%clk 0:00:30]} 30. Rc1 {[%clk 0:00:11]}  Qd5 {[%clk 0:00:21]} 31. Bxd4 {[%clk 0:00:07]}  Qxd4 {[%clk 0:00:20]} 32. Qg5 {[%clk 0:00:05]}  Rd7 {[%clk 0:00:18]} 33. Qxf5 {[%clk 0:00:04]}  Qd3+ {[%clk 0:00:13]} 34. Qxd3 {[%clk 0:00:03]}  Rxd3 {[%clk 0:00:14]} 35. Re1 {[%clk 0:00:03]}  Kc7 {[%clk 0:00:13]} 36. e6 {[%clk 0:00:03]}  Kd8 {[%clk 0:00:14]} 37. e7+ {[%clk 0:00:03]}  Ke8 {[%clk 0:00:14]} 38. Re6 {[%clk 0:00:02]}  a5 {[%clk 0:00:13]} 39. Re5 {[%clk 0:00:02]}  Rb3 {[%clk 0:00:12]} 40. Ka2 {[%clk 0:00:01]}  a4 {[%clk 0:00:13]} 41. Rd5 {[%clk 0:00:01]}  Kxe7 {[%clk 0:00:12]} 42. Rc5 {[%clk 0:00:01]}  Kf6 {[%clk 0:00:12]} 43. Rc7 {[%clk 0:00:01]}  h5 {[%clk 0:00:12]} 44. Rc6+ {[%clk 0:00:01]}  Kf5 {[%clk 0:00:12]} 45. Rc5+ {[%clk 0:00:02]}  Kg4 {[%clk 0:00:12]} 46. Rg5+ {[%clk 0:00:03]}  Kxh4 {[%clk 0:00:13]} 47. Rxg7 {[%clk 0:00:03]}  Rg3 {[%clk 0:00:13]} 48. Rb7 {[%clk 0:00:02]}  Rg5 {[%clk 0:00:13]} 49. b3 {[%clk 0:00:02]}  axb3+ {[%clk 0:00:10]} 50. Kxb3 {[%clk 0:00:03]}  Kg3 {[%clk 0:00:10]} 51. Kb4 {[%clk 0:00:03]}  h4 {[%clk 0:00:10]} 52. Rh7 {[%clk 0:00:02]}  Rg4+ {[%clk 0:00:08]} 53. Kxb5 {[%clk 0:00:02]}  Kxg2 {[%clk 0:00:08]} 54. a4 {[%clk 0:00:02]}  h3 {[%clk 0:00:08]} 55. a5 {[%clk 0:00:02]}  Rg5+ {[%clk 0:00:09]} 56. Kb6 {[%clk 0:00:02]}  Rg3 {[%clk 0:00:09]} 57. a6 {[%clk 0:00:01]}  Rb3+ {[%clk 0:00:09]} 58. Kc7 {[%clk 0:00:00]}  h2 {[%clk 0:00:10]} 0-1


[Site "https://www.chess.com"]

[Event "Titled Tuesday Blitz July 11 Late 2023"]
[White "Goryachkina, Aleksandra"]
[Black "Todorovic, Bojan"]
[WhiteFideId "4147103"]
[BlackFideId "917087"]
[WhiteElo "2685"]
[BlackElo "2398"]
[Result "1-0"]
[Round "5"]
[TimeControl "180+2"]
[Date "2023.07.11"]
[WhiteClock "0:00:16"]
[BlackClock "0:00:15"]
[Board "49"]

1. e4 {[%clk 0:02:59]}  g6 {[%clk 0:02:59]} 2. d4 {[%clk 0:02:59]}  Bg7 {[%clk 0:02:59]} 3. Nf3 {[%clk 0:02:59]}  d6 {[%clk 0:02:59]} 4. Bd3 {[%clk 0:02:58]}  a6 {[%clk 0:02:56]} 5. O-O {[%clk 0:02:56]}  Nd7 {[%clk 0:02:55]} 6. Nbd2 {[%clk 0:02:52]}  e6 {[%clk 0:02:46]} 7. a4 {[%clk 0:02:48]}  b6 {[%clk 0:02:45]} 8. Re1 {[%clk 0:02:45]}  Ne7 {[%clk 0:02:44]} 9. Nf1 {[%clk 0:02:31]}  Bb7 {[%clk 0:02:44]} 10. Ng3 {[%clk 0:02:30]}  h5 {[%clk 0:02:41]} 11. Bg5 {[%clk 0:02:24]}  Nf6 {[%clk 0:02:33]} 12. Qe2 {[%clk 0:02:20]}  Qd7 {[%clk 0:02:23]} 13. a5 {[%clk 0:02:13]}  b5 {[%clk 0:02:22]} 14. Rad1 {[%clk 0:02:12]}  O-O {[%clk 0:02:17]} 15. e5 {[%clk 0:01:56]}  Nfd5 {[%clk 0:02:12]} 16. c3 {[%clk 0:01:46]}  Nf5 {[%clk 0:02:09]} 17. Ne4 {[%clk 0:01:34]}  Rae8 {[%clk 0:01:09]} 18. h3 {[%clk 0:01:30]}  f6 {[%clk 0:01:07]} 19. exf6 {[%clk 0:01:24]}  Nxf6 {[%clk 0:01:08]} 20. Nxf6+ {[%clk 0:01:23]}  Bxf6 {[%clk 0:01:07]} 21. Bxf6 {[%clk 0:01:22]}  Rxf6 {[%clk 0:01:07]} 22. Ng5 {[%clk 0:01:18]}  Bd5 {[%clk 0:01:04]} 23. Be4 {[%clk 0:01:11]}  Qc6 {[%clk 0:01:03]} 24. Bxd5 {[%clk 0:01:04]}  Qxd5 {[%clk 0:01:03]} 25. Ne4 {[%clk 0:00:58]}  Rf7 {[%clk 0:01:01]} 26. Qd2 {[%clk 0:00:57]}  Kg7 {[%clk 0:00:40]} 27. Qg5 {[%clk 0:00:53]}  Ne7 {[%clk 0:00:27]} 28. Rd3 {[%clk 0:00:33]}  Ng8 {[%clk 0:00:20]} 29. Rg3 {[%clk 0:00:24]}  Qxg5 {[%clk 0:00:18]} 30. Nxg5 {[%clk 0:00:25]}  Rfe7 {[%clk 0:00:16]} 31. Rge3 {[%clk 0:00:19]}  e5 {[%clk 0:00:15]} 32. dxe5 {[%clk 0:00:16]}  dxe5 {[%clk 0:00:16]} 33. Ne4 {[%clk 0:00:16]}  Nf6 {[%clk 0:00:16]} 34. Nc5 {[%clk 0:00:16]}  Re6 {[%clk 0:00:16]} 35. Nxe6+ {[%clk 0:00:15]}  Rxe6 {[%clk 0:00:16]} 36. Rxe5 {[%clk 0:00:16]}  Rd6 {[%clk 0:00:17]} 37. Re7+ {[%clk 0:00:16]}  Kh6 {[%clk 0:00:17]} 38. Rxc7 {[%clk 0:00:16]}  Rd2 {[%clk 0:00:17]} 39. Rc6 {[%clk 0:00:16]}  Rxb2 {[%clk 0:00:15]} 40. Rxf6 {[%clk 0:00:16]} 1-0


[Site "https://www.chess.com"]

[Event "Titled Tuesday Blitz July 11 Late 2023"]
[White "Pinero Rodriguez, Carlos Jose"]
[Black "Leitao, Rafael"]
[WhiteFideId "3901726"]
[BlackFideId "2101246"]
[WhiteElo "2421"]
[BlackElo "2754"]
[Result "0-1"]
[Round "5"]
[TimeControl "180+2"]
[Date "2023.07.11"]
[WhiteClock "0:00:16"]
[BlackClock "0:00:18"]
[Board "51"]

1. b3 {[%clk 0:03:00]}  Nf6 {[%clk 0:02:56]} 2. Bb2 {[%clk 0:03:00]}  g6 {[%clk 0:02:56]} 3. Bxf6 {[%clk 0:03:00]}  exf6 {[%clk 0:02:56]} 4. d4 {[%clk 0:03:01]}  d5 {[%clk 0:02:53]} 5. e3 {[%clk 0:03:02]}  f5 {[%clk 0:02:53]} 6. g3 {[%clk 0:03:02]}  c6 {[%clk 0:02:53]} 7. h4 {[%clk 0:03:02]}  h5 {[%clk 0:02:52]} 8. Bg2 {[%clk 0:03:02]}  Nd7 {[%clk 0:02:52]} 9. Ne2 {[%clk 0:03:03]}  Nf6 {[%clk 0:02:53]} 10. Nd2 {[%clk 0:03:03]}  Bd6 {[%clk 0:02:51]} 11. c4 {[%clk 0:03:03]}  Be6 {[%clk 0:02:46]} 12. cxd5 {[%clk 0:03:02]}  Bxd5 {[%clk 0:02:33]} 13. Bxd5 {[%clk 0:03:02]}  Nxd5 {[%clk 0:02:33]} 14. Nf3 {[%clk 0:02:57]}  Bb4+ {[%clk 0:02:31]} 15. Kf1 {[%clk 0:02:57]}  O-O {[%clk 0:02:28]} 16. a3 {[%clk 0:02:55]}  Bd6 {[%clk 0:02:28]} 17. Qd3 {[%clk 0:02:46]}  Qe7 {[%clk 0:02:23]} 18. a4 {[%clk 0:02:42]}  Nb4 {[%clk 0:02:18]} 19. Qb1 {[%clk 0:02:38]}  c5 {[%clk 0:02:03]} 20. Kg2 {[%clk 0:02:35]}  Rac8 {[%clk 0:01:57]} 21. Rd1 {[%clk 0:02:27]}  c4 {[%clk 0:01:49]} 22. bxc4 {[%clk 0:02:27]}  Rxc4 {[%clk 0:01:49]} 23. Qb3 {[%clk 0:02:22]}  Rfc8 {[%clk 0:01:47]} 24. Rac1 {[%clk 0:02:21]}  Qc7 {[%clk 0:01:16]} 25. Qb1 {[%clk 0:02:02]}  Qa5 {[%clk 0:01:11]} 26. Qb3 {[%clk 0:01:57]}  Qa6 {[%clk 0:01:07]} 27. Rxc4 {[%clk 0:01:41]}  Rxc4 {[%clk 0:01:06]} 28. Nc3 {[%clk 0:01:18]}  Qc6 {[%clk 0:00:48]} 29. Nb5 {[%clk 0:01:17]}  Rc2 {[%clk 0:00:43]} 30. Nxd6 {[%clk 0:01:07]}  Qxd6 {[%clk 0:00:41]} 31. Rd2 {[%clk 0:01:06]}  Rxd2 {[%clk 0:00:30]} 32. Nxd2 {[%clk 0:01:07]}  b6 {[%clk 0:00:29]} 33. Qc4 {[%clk 0:01:03]}  Qd5+ {[%clk 0:00:24]} 34. Qxd5 {[%clk 0:01:03]}  Nxd5 {[%clk 0:00:25]} 35. Nc4 {[%clk 0:00:49]}  Kf8 {[%clk 0:00:25]} 36. Kf1 {[%clk 0:00:32]}  Ke7 {[%clk 0:00:25]} 37. Ke1 {[%clk 0:00:32]}  Nc3 {[%clk 0:00:25]} 38. a5 {[%clk 0:00:32]}  bxa5 {[%clk 0:00:20]} 39. Nxa5 {[%clk 0:00:32]}  Kd6 {[%clk 0:00:20]} 40. f3 {[%clk 0:00:27]}  Kd5 {[%clk 0:00:17]} 41. Kd2 {[%clk 0:00:27]}  Nb5 {[%clk 0:00:18]} 42. Kd3 {[%clk 0:00:27]}  Nd6 {[%clk 0:00:18]} 43. Nb3 {[%clk 0:00:22]}  Kc6 {[%clk 0:00:16]} 44. e4 {[%clk 0:00:22]}  fxe4+ {[%clk 0:00:17]} 45. fxe4 {[%clk 0:00:23]}  Kb5 {[%clk 0:00:18]} 46. e5 {[%clk 0:00:22]}  Nf5 {[%clk 0:00:18]} 47. d5 {[%clk 0:00:20]}  Nxg3 {[%clk 0:00:18]} 48. Nd4+ {[%clk 0:00:19]}  Kb6 {[%clk 0:00:17]} 49. e6 {[%clk 0:00:19]}  fxe6 {[%clk 0:00:17]} 50. dxe6 {[%clk 0:00:20]}  Kc7 {[%clk 0:00:17]} 51. Kc4 {[%clk 0:00:20]}  Kd6 {[%clk 0:00:17]} 52. Kd3 {[%clk 0:00:19]}  Nf5 {[%clk 0:00:17]} 53. Nb5+ {[%clk 0:00:19]}  Kxe6 {[%clk 0:00:17]} 54. Nxa7 {[%clk 0:00:20]}  Nxh4 {[%clk 0:00:18]} 55. Ke4 {[%clk 0:00:21]}  Kf6 {[%clk 0:00:18]} 56. Kf4 {[%clk 0:00:21]}  Nf5 {[%clk 0:00:18]} 57. Nc6 {[%clk 0:00:21]}  g5+ {[%clk 0:00:18]} 58. Kf3 {[%clk 0:00:21]}  Ke6 {[%clk 0:00:18]} 59. Nd8+ {[%clk 0:00:21]}  Ke5 {[%clk 0:00:18]} 60. Nf7+ {[%clk 0:00:21]}  Kf6 {[%clk 0:00:18]} 61. Nd8 {[%clk 0:00:21]}  Nd4+ {[%clk 0:00:18]} 62. Kg3 {[%clk 0:00:21]}  Ne6 {[%clk 0:00:18]} 63. Nc6 {[%clk 0:00:21]}  Kf5 {[%clk 0:00:18]} 64. Ne7+ {[%clk 0:00:21]}  Kf6 {[%clk 0:00:19]} 65. Nc6 {[%clk 0:00:20]}  Ng7 {[%clk 0:00:17]} 66. Nd4 {[%clk 0:00:18]}  Nf5+ {[%clk 0:00:17]} 67. Nxf5 {[%clk 0:00:16]}  Kxf5 {[%clk 0:00:18]} 0-1


[Site "https://www.chess.com"]